fUST/lending_fUST_20260608
["ID","MTS","AMOUNT","RATE_DAILY","PERIOD"]
[424445038,1780907438000,-603.06,0.00013698,2]
[424445040,1780907438000,-603.06,0.00013698,2]
[424445041,1780907438000,-603.06,0.00013698,2]
[424445042,1780907438000,-603.06,0.00013698,2]
[424445043,1780907438000,-603.06,0.00013698,2]
[424445046,1780907438000,-603.06,0.00013698,2]
[424445039,1780907438000,-603.06,0.00013698,2]
[424445044,1780907438000,-603.06,0.00013698,2]
[424445045,1780907438000,-603.06,0.00013698,2]
[424445058,1780907438000,-514.065026,0.00013799,2]
[424445059,1780907438000,-966.3217476,0.00013799,2]
[424445055,1780907438000,-309.22331177,0.00013729,2]
[424445052,1780907438000,-507.33168884,0.00013698,2]
[424445053,1780907438000,-500.0,0.00013698,2]
[424445056,1780907438000,-22626.9908062,0.00013799,2]
[424445051,1780907438000,-500.0,0.00013698,2]
[424445048,1780907438000,-603.06,0.00013698,2]
[424445047,1780907438000,-603.06,0.00013698,2]
[424445049,1780907438000,-603.29718136,0.00013698,2]
[424445050,1780907438000,-500.0,0.00013698,2]
[424445137,1780907439000,-850.0,0.0001528,2]
[424445125,1780907439000,-252.9956975,0.00015068,2]
[424445128,1780907439000,-370.69690615,0.00015095,2]
[424445126,1780907439000,-350.0,0.0001508,2]
[424445121,1780907439000,-456.546,0.00015011,2]
[424445118,1780907439000,-2349.586,0.00015011,2]
[424445120,1780907439000,-186.134,0.00015011,2]
[424445122,1780907439000,-1843.431,0.00015011,2]
[424445116,1780907439000,-457.2882,0.00014919,2]
[424445117,1780907439000,-2178.0779084,0.00015,2]
[424445136,1780907439000,-350.0,0.00015278,2]
[424445119,1780907439000,-744.0,0.00015011,2]
[424445138,1780907439000,-500.0,0.00015342,2]
[424445142,1780907439000,-413.904875,0.00015474,2]
[424445129,1780907439000,-308.87538449,0.00015155,2]
[424445127,1780907439000,-850.0,0.00015095,2]
[424445130,1780907439000,-155.889,0.00015168,2]
[424445132,1780907439000,-232.959,0.00015168,2]
[424445133,1780907439000,-150.93,0.00015168,2]
[424445135,1780907439000,-160.0,0.00015256,2]
[424445134,1780907439000,-250.0,0.00015168,2]
[424445139,1780907439000,-1872.43251852,0.00015366,2]
[424445140,1780907439000,-500.0,0.00015376,2]
[424445141,1780907439000,-308.87538449,0.00015408,2]
[424445144,1780907439000,-210.0,0.00015476,2]
[424445143,1780907439000,-225.0,0.00015476,2]
[424445114,1780907439000,-457.2882,0.00014919,2]
[424445131,1780907439000,-220.833,0.00015168,2]
[424445115,1780907439000,-457.2882,0.00014919,2]
[424445091,1780907439000,-151.0,0.00014375,2]
[424445123,1780907439000,-160.0,0.00015048,2]
[424445086,1780907439000,-413.904875,0.00014359,2]
[424445088,1780907439000,-108852.39266688,0.00014375,2]
[424445089,1780907439000,-824.0,0.00014375,2]
[424445087,1780907439000,-175568.59219981,0.00014375,2]
[424445145,1780907439000,-350.0,0.00015476,2]
[424445096,1780907439000,-500.0,0.0001452,2]
[424445090,1780907439000,-35893.47443321,0.00014375,2]
[424445094,1780907439000,-308.87538449,0.00014397,2]
[424445095,1780907439000,-257.68609314,0.00014412,2]
[424445093,1780907439000,-151.0,0.00014375,2]
[424445097,1780907439000,-308.87538449,0.0001465,2]
[424445092,1780907439000,-151.0,0.00014375,2]
[424445098,1780907439000,-230.0,0.00014658,2]
[424445124,1780907439000,-500.0,0.00015068,2]
[424445099,1780907439000,-160.0,0.0001468,2]
[424445102,1780907439000,-500.0,0.00014794,2]
[424445104,1780907439000,-371.95139771,0.00014904,2]
[424445110,1780907439000,-457.2882,0.00014919,2]
[424445103,1780907439000,-308.87538449,0.00014903,2]
[424445107,1780907439000,-328.7128083,0.00014919,2]
[424445101,1780907439000,-850.0,0.0001478,2]
[424445105,1780907439000,-413.904875,0.00014916,2]
[424445108,1780907439000,-457.2882,0.00014919,2]
[424445109,1780907439000,-326.4407506,0.00014919,2]
[424445106,1780907439000,-317.1833078,0.00014919,2]
[424445111,1780907439000,-326.3232199,0.00014919,2]
[424445112,1780907439000,-326.4407506,0.00014919,2]
[424445113,1780907439000,-456.9183052,0.00014919,2]
[424445100,1780907439000,-350.0,0.00014756,2]
[424445146,1780907439000,-157.0,0.00015476,2]
[424445157,1780907439000,-559.95235708,0.0001588,2]
[424445147,1780907439000,-175.0,0.00015476,2]
[424445183,1780907439000,-500.0,0.00016438,2]
[424445181,1780907439000,-500.0,0.00016438,2]
[424445185,1780907439000,-391.72350453,0.00016438,2]
[424445186,1780907439000,-500.0,0.00016438,2]
[424445187,1780907439000,-500.0,0.00016438,2]
[424445190,1780907439000,-500.0,0.00016438,2]
[424445189,1780907439000,-500.0,0.00016438,2]
[424445191,1780907439000,-496.46805224,0.00016438,2]
[424445193,1780907439000,-500.0,0.00016438,2]
[424445194,1780907439000,-500.0,0.00016438,2]
[424445192,1780907439000,-500.0,0.00016438,2]
[424445148,1780907439000,-500.0,0.00015616,2]
[424445195,1780907439000,-500.0,0.00016438,2]
[424445197,1780907439000,-400.38539978,0.00016438,2]
[424445198,1780907439000,-99.61460022,0.00016438,2]
[424445200,1780907439000,-500.0,0.00016438,2]
[424445199,1780907439000,-606.81,0.00016438,2]
[424445201,1780907439000,-500.0,0.00016438,2]
[424445202,1780907439000,-500.0,0.00016438,2]
[424445203,1780907439000,-548.35,0.00016438,2]
[424445208,1780907439000,-500.0,0.00016438,2]
[424445205,1780907439000,-500.0,0.00016438,2]
[424445206,1780907439000,-1561.73,0.00016438,2]
[424445207,1780907439000,-346.32248694,0.00016438,2]
[424445209,1780907439000,-169.57106301,0.00016438,2]
[424445204,1780907439000,-500.0,0.00016438,2]
[424445210,1780907439000,-330.42893699,0.00016438,2]
[424445184,1780907439000,-500.0,0.00016438,2]
[424445180,1780907439000,-500.0,0.00016438,2]
[424445196,1780907439000,-500.0,0.00016438,2]
[424445188,1780907439000,-500.0,0.00016438,2]
[424445182,1780907439000,-500.0,0.00016438,2]
[424445151,1780907439000,-151.87545882,0.00015705,2]
[424445149,1780907439000,-308.87538449,0.0001566,2]
[424445153,1780907439000,-540.2451274,0.00015787,2]
[424445161,1780907439000,-559.95235708,0.0001595,2]
[424445152,1780907439000,-176.0313799,0.00015705,2]
[424445154,1780907439000,-559.95235708,0.00015854,2]
[424445156,1780907439000,-559.95235708,0.00015875,2]
[424445160,1780907439000,-184.69660956,0.00015933,7]
[424445158,1780907439000,-500.0,0.0001589,2]
[424445159,1780907439000,-308.87538449,0.00015913,2]
[424445155,1780907439000,-1000.0,0.00015873,5]
[424445163,1780907439000,-559.95235708,0.00015966,2]
[424445162,1780907439000,-559.95235708,0.00015956,2]
[424445150,1780907439000,-167.97316194,0.00015689,2]
[424445169,1780907439000,-500.0,0.00016438,2]
[424445178,1780907439000,-500.0,0.00016438,2]
[424445176,1780907439000,-500.0,0.00016438,2]
[424445175,1780907439000,-500.0,0.00016438,2]
[424445164,1780907439000,-238.869899,0.00016,2]
[424445170,1780907439000,-1220.3196,0.00016438,2]
[424445165,1780907439000,-413.904875,0.00016031,2]
[424445171,1780907439000,-500.0,0.00016438,2]
[424445172,1780907439000,-500.0,0.00016438,2]
[424445173,1780907439000,-500.0,0.00016438,2]
[424445167,1780907439000,-500.0,0.00016164,2]
[424445168,1780907439000,-225.368519,0.00016378,2]
[424445166,1780907439000,-360.0,0.00016138,2]
[424445174,1780907439000,-416.26920561,0.00016438,2]
[424445226,1780907440000,-500.0,0.00016438,2]
[424445228,1780907440000,-500.0,0.00016438,2]
[424445229,1780907440000,-664.29,0.00016438,2]
[424445231,1780907440000,-500.0,0.00016438,2]
[424445230,1780907440000,-500.89537406,0.00016438,2]
[424445237,1780907440000,-500.0,0.00016438,2]
[424445233,1780907440000,-500.0,0.00016438,2]
[424445235,1780907440000,-500.0,0.00016438,2]
[424445236,1780907440000,-500.79366513,0.00016438,2]
[424445239,1780907440000,-500.0,0.00016438,2]
[424445221,1780907440000,-208.11,0.00016438,2]
[424445232,1780907440000,-710.97,0.00016438,2]
[424445225,1780907440000,-500.0,0.00016438,2]
[424445216,1780907440000,-500.0,0.00016438,2]
[424445224,1780907440000,-500.7466609,0.00016438,2]
[424445222,1780907440000,-500.0,0.00016438,2]
[424445218,1780907440000,-500.0,0.00016438,2]
[424445220,1780907440000,-500.0,0.00016438,2]
[424445219,1780907440000,-500.0,0.00016438,2]
[424445227,1780907440000,-500.0,0.00016438,2]
[424445217,1780907440000,-534.25,0.00016438,2]
[424445214,1780907440000,-500.0,0.00016438,2]
[424445215,1780907440000,-500.0,0.00016438,2]
[424445211,1780907440000,-501.5281125,0.00016438,2]
[424445212,1780907440000,-500.0,0.00016438,2]
[424445213,1780907440000,-500.0,0.00016438,2]
[424445223,1780907440000,-500.0,0.00016438,2]
[424445234,1780907440000,-500.0,0.00016438,2]
[424445240,1780907440000,-500.0,0.00016438,2]
[424445241,1780907440000,-500.0,0.00016438,2]
[424445238,1780907440000,-516.88,0.00016438,2]
[424445267,1780907440000,-673.23,0.00016438,2]
[424445268,1780907440000,-429.68195235,0.00016438,2]
[424445261,1780907440000,-732.41454536,0.00016438,2]
[424445262,1780907440000,-446.21545464,0.00016438,2]
[424445264,1780907440000,-500.0,0.00016438,2]
[424445263,1780907440000,-500.0,0.00016438,2]
[424445260,1780907440000,-876.64624489,0.00016438,2]
[424445259,1780907440000,-16750.14375511,0.00016438,2]
[424445258,1780907440000,-790.52,0.00016438,2]
[424445265,1780907440000,-536.24,0.00016438,2]
[424445256,1780907440000,-500.0,0.00016438,2]
[424445257,1780907440000,-253.38260678,0.00016438,2]
[424445266,1780907440000,-500.0,0.00016438,2]
[424445254,1780907440000,-500.0,0.00016438,2]
[424445242,1780907440000,-494.41568499,0.00016438,2]
[424445244,1780907440000,-500.0,0.00016438,2]
[424445255,1780907440000,-530.29048162,0.00016438,2]
[424445250,1780907440000,-500.66920843,0.00016438,2]
[424445251,1780907440000,-500.0,0.00016438,2]
[424445252,1780907440000,-500.0,0.00016438,2]
[424445243,1780907440000,-287.20041528,0.00016438,2]
[424445247,1780907440000,-151.0,0.00016438,2]
[424445246,1780907440000,-151.0,0.00016438,2]
[424445248,1780907440000,-151.0,0.00016438,2]
[424445245,1780907440000,-500.89307791,0.00016438,2]
[424445249,1780907440000,-569.74,0.00016438,2]
[424445253,1780907440000,-500.6069777,0.00016438,2]
[424445275,1780907441000,-491.80752705,0.00016438,2]
[424445270,1780907441000,-70.31804765,0.00016438,2]
[424445272,1780907441000,-622.22,0.00016438,2]
[424445273,1780907441000,-58.48761781,0.00016438,2]
[424445271,1780907441000,-500.0,0.00016438,2]
[424445274,1780907441000,-1110.49238219,0.00016438,2]
[424445276,1780907441000,-500.0,0.00016438,2]
[424445286,1780907441000,-289.17779146,0.00016438,2]
[424445281,1780907441000,-500.0,0.00016438,2]
[424445280,1780907441000,-500.0,0.00016438,2]
[424445277,1780907441000,-500.0,0.00016438,2]
[424445279,1780907441000,-500.0,0.00016438,2]
[424445283,1780907441000,-602.05,0.00016438,2]
[424445278,1780907441000,-500.0,0.00016438,2]
[424445282,1780907441000,-604.38,0.00016438,2]
[424445285,1780907441000,-607.24220854,0.00016438,2]
[424445287,1780907441000,-500.0,0.00016438,2]
[424445288,1780907441000,-338.99591983,0.00016438,2]
[424445284,1780907441000,-959.96,0.00016438,2]
[424445320,1780907443000,-711.19,0.00016438,2]
[424445333,1780907443000,-558.46,0.00016438,2]
[424445337,1780907443000,-500.0,0.00016438,2]
[424445332,1780907443000,-220.41950984,0.00016438,2]
[424445331,1780907443000,-890.89049016,0.00016438,2]
[424445328,1780907443000,-435.34403324,0.00016438,2]
[424445336,1780907443000,-500.0,0.00016438,2]
[424445329,1780907443000,-64.65596676,0.00016438,2]
[424445340,1780907443000,-500.0,0.00016438,2]
[424445316,1780907443000,-677.8,0.00016438,2]
[424445335,1780907443000,-500.0,0.00016438,2]
[424445334,1780907443000,-500.0,0.00016438,2]
[424445350,1780907443000,-350.0,0.00016476,2]
[424445339,1780907443000,-1785.17,0.00016438,2]
[424445342,1780907443000,-188.83635802,0.00016438,2]
[424445351,1780907443000,-157.0,0.00016476,2]
[424445353,1780907443000,-540.84079338,0.00016587,2]
[424445352,1780907443000,-175.0,0.00016476,2]
[424445341,1780907443000,-500.0,0.00016438,2]
[424445343,1780907443000,-178.23,0.00016438,2]
[424445344,1780907443000,-151.0,0.00016438,2]
[424445345,1780907443000,-151.0,0.00016438,2]
[424445347,1780907443000,-151.0,0.00016438,2]
[424445338,1780907443000,-500.0,0.00016438,2]
[424445319,1780907443000,-500.0,0.00016438,2]
[424445300,1780907443000,-330.42959763,0.00016438,2]
[424445325,1780907443000,-500.0,0.00016438,2]
[424445299,1780907443000,-3625.29,0.00016438,2]
[424445298,1780907443000,-161.00408017,0.00016438,2]
[424445346,1780907443000,-151.0,0.00016438,2]
[424445301,1780907443000,-500.0,0.00016438,2]
[424445312,1780907443000,-500.0,0.00016438,2]
[424445302,1780907443000,-500.0,0.00016438,2]
[424445311,1780907443000,-2202.68,0.00016438,2]
[424445314,1780907443000,-1471.15,0.00016438,2]
[424445307,1780907443000,-432.84175243,0.00016438,2]
[424445306,1780907443000,-842.68,0.00016438,2]
[424445304,1780907443000,-575.61,0.00016438,2]
[424445321,1780907443000,-500.0,0.00016438,2]
[424445315,1780907443000,-2203.02,0.00016438,2]
[424445305,1780907443000,-1898.22,0.00016438,2]
[424445310,1780907443000,-500.0,0.00016438,2]
[424445313,1780907443000,-500.0,0.00016438,2]
[424445309,1780907443000,-831.69,0.00016438,2]
[424445318,1780907443000,-969.84,0.00016438,2]
[424445323,1780907443000,-296.22898066,0.00016438,2]
[424445317,1780907443000,-1444.43,0.00016438,2]
[424445326,1780907443000,-404.41259307,0.00016438,2]
[424445322,1780907443000,-4858.05,0.00016438,2]
[424445324,1780907443000,-781.68,0.00016438,2]
[424445327,1780907443000,-500.0,0.00016438,2]
[424445308,1780907443000,-727.87824757,0.00016438,2]
[424445348,1780907443000,-225.0,0.00016476,2]
[424445330,1780907443000,-500.0,0.00016438,2]
[424445355,1780907443000,-338.052778,0.00016646,2]
[424445383,1780907443000,-500.0,0.00016712,2]
[424445381,1780907443000,-500.0,0.00016712,2]
[424445385,1780907443000,-500.0,0.00016712,2]
[424445387,1780907443000,-500.0,0.00016712,2]
[424445382,1780907443000,-606.81,0.00016712,2]
[424445386,1780907443000,-548.35,0.00016712,2]
[424445390,1780907443000,-500.0,0.00016712,2]
[424445394,1780907443000,-500.0,0.00016712,2]
[424445392,1780907443000,-500.0,0.00016712,2]
[424445396,1780907443000,-500.0,0.00016712,2]
[424445400,1780907443000,-500.0,0.00016712,2]
[424445391,1780907443000,-500.0,0.00016712,2]
[424445401,1780907443000,-500.0,0.00016712,2]
[424445395,1780907443000,-534.25,0.00016712,2]
[424445393,1780907443000,-500.0,0.00016712,2]
[424445397,1780907443000,-500.0,0.00016712,2]
[424445398,1780907443000,-500.0,0.00016712,2]
[424445399,1780907443000,-500.0,0.00016712,2]
[424445402,1780907443000,-500.0,0.00016712,2]
[424445403,1780907443000,-664.29,0.00016712,2]
[424445406,1780907443000,-500.0,0.00016712,2]
[424445405,1780907443000,-710.97,0.00016712,2]
[424445407,1780907443000,-500.0,0.00016712,2]
[424445377,1780907443000,-500.0,0.00016712,2]
[424445380,1780907443000,-500.0,0.00016712,2]
[424445384,1780907443000,-500.0,0.00016712,2]
[424445388,1780907443000,-1561.73,0.00016712,2]
[424445363,1780907443000,-1000.0,0.000167,2]
[424445364,1780907443000,-512.67313995,0.00016712,2]
[424445354,1780907443000,-1966.68023139,0.00016612,2]
[424445365,1780907443000,-925.0746,0.00016712,2]
[424445366,1780907443000,-500.0,0.00016712,2]
[424445367,1780907443000,-500.0,0.00016712,2]
[424445358,1780907443000,-228.160103,0.00016646,2]
[424445379,1780907443000,-189.106098,0.00016712,2]
[424445362,1780907443000,-1000.0,0.000167,2]
[424445359,1780907443000,-208.836946,0.0001666,2]
[424445361,1780907443000,-1000.0,0.000167,2]
[424445360,1780907443000,-1000.0,0.000167,2]
[424445357,1780907443000,-187.953251,0.00016646,2]
[424445404,1780907443000,-386.3443374,0.00016712,2]
[424445370,1780907443000,-500.0,0.00016712,2]
[424445389,1780907443000,-500.0,0.00016712,2]
[424445375,1780907443000,-500.0,0.00016712,2]
[424445373,1780907443000,-500.0,0.00016712,2]
[424445374,1780907443000,-500.0,0.00016712,2]
[424445378,1780907443000,-229.71630893,0.00016712,2]
[424445349,1780907443000,-210.0,0.00016476,2]
[424445376,1780907443000,-500.0,0.00016712,2]
[424445371,1780907443000,-500.0,0.00016712,2]
[424445369,1780907443000,-500.0,0.00016712,2]
[424445368,1780907443000,-500.0,0.00016712,2]
[424445372,1780907443000,-500.0,0.00016712,2]
[424445416,1780907444000,-500.0,0.00016712,2]
[424445418,1780907444000,-790.52,0.00016712,2]
[424445410,1780907444000,-516.88,0.00016712,2]
[424445408,1780907444000,-500.0,0.00016712,2]
[424445419,1780907444000,-1178.63,0.00016712,2]
[424445412,1780907444000,-500.0,0.00016712,2]
[424445413,1780907444000,-441.9563385,0.00016712,2]
[424445409,1780907444000,-500.0,0.00016712,2]
[424445411,1780907444000,-500.0,0.00016712,2]
[424445414,1780907444000,-500.0,0.00016712,2]
[424445415,1780907444000,-569.74,0.00016712,2]
[424445428,1780907444000,-484.60972726,0.00016712,2]
[424445420,1780907444000,-279.62113522,0.00016712,2]
[424445421,1780907444000,-536.24,0.00016712,2]
[424445427,1780907444000,-500.0,0.00016712,2]
[424445422,1780907444000,-500.0,0.00016712,2]
[424445423,1780907444000,-673.23,0.00016712,2]
[424445425,1780907444000,-300.0,0.00016712,2]
[424445424,1780907444000,-184.60972726,0.00016712,2]
[424445426,1780907444000,-15.39027274,0.00016712,2]
[424445430,1780907444000,-1168.98,0.00016712,2]
[424445431,1780907444000,-282.07882778,0.00016712,2]
[424445429,1780907444000,-137.61027274,0.00016712,2]
[424445417,1780907444000,-500.0,0.00016712,2]
[424445471,1780907446000,-265.20919542,0.00016712,2]
[424445468,1780907446000,-500.0,0.00016712,2]
[424445469,1780907446000,-4014.81042254,0.00016712,2]
[424445463,1780907446000,-677.8,0.00016712,2]
[424445465,1780907446000,-969.84,0.00016712,2]
[424445466,1780907446000,-500.0,0.00016712,2]
[424445464,1780907446000,-1444.43,0.00016712,2]
[424445461,1780907446000,-1471.15,0.00016712,2]
[424445470,1780907446000,-843.23957746,0.00016712,2]
[424445467,1780907446000,-711.19,0.00016712,2]
[424445472,1780907446000,-516.47080458,0.00016712,2]
[424445485,1780907446000,-500.0,0.00016712,2]
[424445473,1780907446000,-500.0,0.00016712,2]
[424445476,1780907446000,-500.0,0.00016712,2]
[424445486,1780907446000,-156.327533,0.00016712,2]
[424445462,1780907446000,-2203.02,0.00016712,2]
[424445475,1780907446000,-500.0,0.00016712,2]
[424445479,1780907446000,-500.0,0.00016712,2]
[424445483,1780907446000,-500.0,0.00016712,2]
[424445477,1780907446000,-1111.31,0.00016712,2]
[424445478,1780907446000,-558.46,0.00016712,2]
[424445482,1780907446000,-500.0,0.00016712,2]
[424445481,1780907446000,-500.0,0.00016712,2]
[424445474,1780907446000,-500.0,0.00016712,2]
[424445455,1780907446000,-1160.72,0.00016712,2]
[424445460,1780907446000,-500.0,0.00016712,2]
[424445451,1780907446000,-500.0,0.00016712,2]
[424445480,1780907446000,-500.0,0.00016712,2]
[424445435,1780907446000,-265.98631011,0.00016712,2]
[424445434,1780907446000,-217.92117222,0.00016712,2]
[424445439,1780907446000,-500.0,0.00016712,2]
[424445441,1780907446000,-604.38,0.00016712,2]
[424445445,1780907446000,-728.98028224,0.00016712,2]
[424445437,1780907446000,-500.0,0.00016712,2]
[424445438,1780907446000,-500.0,0.00016712,2]
[424445444,1780907446000,-364.94471259,0.00016712,2]
[424445443,1780907446000,-595.01528741,0.00016712,2]
[424445436,1780907446000,-43.87392691,0.00016712,2]
[424445454,1780907446000,-842.68,0.00016712,2]
[424445446,1780907446000,-167.43971776,0.00016712,2]
[424445442,1780907446000,-602.05,0.00016712,2]
[424445447,1780907446000,-500.0,0.00016712,2]
[424445450,1780907446000,-500.0,0.00016712,2]
[424445457,1780907446000,-249.73283287,0.00016712,2]
[424445448,1780907446000,-500.0,0.00016712,2]
[424445449,1780907446000,-3625.29,0.00016712,2]
[424445453,1780907446000,-1898.22,0.00016712,2]
[424445452,1780907446000,-575.61,0.00016712,2]
[424445459,1780907446000,-500.0,0.00016712,2]
[424445456,1780907446000,-831.69,0.00016712,2]
[424445458,1780907446000,-2202.68,0.00016712,2]
[424445440,1780907446000,-500.0,0.00016712,2]
[424445484,1780907446000,-1785.17,0.00016712,2]
[424445487,1780907446000,-500.0,0.00016712,2]
[424445489,1780907446000,-1000.0,0.000168,2]
[424445518,1780907446000,-1561.73,0.00016986,2]
[424445516,1780907446000,-548.35,0.00016986,2]
[424445526,1780907446000,-589.26269369,0.00016986,2]
[424445519,1780907446000,-500.0,0.00016986,2]
[424445523,1780907446000,-372.66443406,0.00016986,2]
[424445524,1780907446000,-500.0,0.00016986,2]
[424445521,1780907446000,-500.0,0.00016986,2]
[424445525,1780907446000,-534.25,0.00016986,2]
[424445520,1780907446000,-500.0,0.00016986,2]
[424445522,1780907446000,-500.0,0.00016986,2]
[424445528,1780907446000,-500.0,0.00016986,2]
[424445514,1780907446000,-500.0,0.00016986,2]
[424445537,1780907446000,-500.0,0.00016986,2]
[424445527,1780907446000,-500.0,0.00016986,2]
[424445539,1780907446000,-516.88,0.00016986,2]
[424445529,1780907446000,-500.0,0.00016986,2]
[424445530,1780907446000,-500.0,0.00016986,2]
[424445535,1780907446000,-500.0,0.00016986,2]
[424445531,1780907446000,-500.0,0.00016986,2]
[424445534,1780907446000,-710.97,0.00016986,2]
[424445533,1780907446000,-664.29,0.00016986,2]
[424445532,1780907446000,-609.90298236,0.00016986,2]
[424445540,1780907446000,-160.5447581,0.00016986,2]
[424445541,1780907446000,-500.0,0.00016986,2]
[424445536,1780907446000,-500.0,0.00016986,2]
[424445517,1780907446000,-500.0,0.00016986,2]
[424445538,1780907446000,-500.0,0.00016986,2]
[424445513,1780907446000,-606.81,0.00016986,2]
[424445515,1780907446000,-500.0,0.00016986,2]
[424445488,1780907446000,-600.0,0.00016766,2]
[424445490,1780907446000,-1000.0,0.000168,2]
[424445498,1780907446000,-240.94946719,0.00016979,7]
[424445497,1780907446000,-308.87538449,0.00016925,2]
[424445491,1780907446000,-1000.0,0.000168,2]
[424445499,1780907446000,-1328.6413,0.00016986,2]
[424445492,1780907446000,-1000.0,0.000168,2]
[424445495,1780907446000,-707.796343,0.000168,2]
[424445494,1780907446000,-1000.0,0.000168,2]
[424445496,1780907446000,-194.637465,0.00016813,2]
[424445501,1780907446000,-500.0,0.00016986,2]
[424445493,1780907446000,-1000.0,0.000168,2]
[424445511,1780907446000,-281.5238074,0.00016986,2]
[424445502,1780907446000,-500.0,0.00016986,2]
[424445508,1780907446000,-500.0,0.00016986,2]
[424445505,1780907446000,-500.0,0.00016986,2]
[424445503,1780907446000,-500.0,0.00016986,2]
[424445504,1780907446000,-500.0,0.00016986,2]
[424445507,1780907446000,-500.0,0.00016986,2]
[424445512,1780907446000,-486.15730754,0.00016986,2]
[424445510,1780907446000,-500.0,0.00016986,2]
[424445509,1780907446000,-500.0,0.00016986,2]
[424445500,1780907446000,-500.0,0.00016986,2]
[424445506,1780907446000,-500.0,0.00016986,2]
[424445586,1780907447000,-781.68,0.00016986,2]
[424445581,1780907447000,-969.84,0.00016986,2]
[424445584,1780907447000,-500.0,0.00016986,2]
[424445583,1780907447000,-711.19,0.00016986,2]
[424445585,1780907447000,-4858.05,0.00016986,2]
[424445579,1780907447000,-677.8,0.00016986,2]
[424445578,1780907447000,-2203.02,0.00016986,2]
[424445577,1780907447000,-1471.15,0.00016986,2]
[424445575,1780907447000,-500.0,0.00016986,2]
[424445576,1780907447000,-500.0,0.00016986,2]
[424445574,1780907447000,-2202.68,0.00016986,2]
[424445582,1780907447000,-500.0,0.00016986,2]
[424445580,1780907447000,-1444.43,0.00016986,2]
[424445587,1780907447000,-500.0,0.00016986,2]
[424445595,1780907447000,-500.0,0.00016986,2]
[424445599,1780907447000,-500.0,0.00016986,2]
[424445600,1780907447000,-500.0,0.00016986,2]
[424445588,1780907447000,-500.0,0.00016986,2]
[424445590,1780907447000,-500.0,0.00016986,2]
[424445596,1780907447000,-500.0,0.00016986,2]
[424445594,1780907447000,-500.0,0.00016986,2]
[424445592,1780907447000,-558.46,0.00016986,2]
[424445591,1780907447000,-1111.31,0.00016986,2]
[424445597,1780907447000,-500.0,0.00016986,2]
[424445598,1780907447000,-1785.17,0.00016986,2]
[424445593,1780907447000,-500.0,0.00016986,2]
[424445601,1780907447000,-7338.87441776,0.00017,2]
[424445573,1780907447000,-831.69,0.00016986,2]
[424445589,1780907447000,-500.0,0.00016986,2]
[424445572,1780907447000,-1160.72,0.00016986,2]
[424445546,1780907447000,-790.52,0.00016986,2]
[424445567,1780907447000,-500.0,0.00016986,2]
[424445542,1780907447000,-500.0,0.00016986,2]
[424445547,1780907447000,-1178.63,0.00016986,2]
[424445543,1780907447000,-569.74,0.00016986,2]
[424445606,1780907447000,-1328.6413,0.0001726,2]
[424445549,1780907447000,-500.0,0.00016986,2]
[424445544,1780907447000,-500.0,0.00016986,2]
[424445545,1780907447000,-500.0,0.00016986,2]
[424445548,1780907447000,-536.24,0.00016986,2]